bitfinex-derivatives/quotes_SOLF0:USTF0_20250207
["timestamp","ask_amount","ask_price","bid_price","bid_amount"]
[1738954215942,5.033,198.62,198.56,5.0344]
[1738954216140,0.03491558,198.61,198.51,21.88130526]
[1738954217747,5.06811558,198.61,198.55,5.0347]
[1738954218242,0.03491558,198.61,198.51,21.88130526]
[1738954219252,5.0345,198.56,198.47,21.88130526]
[1738954219552,21.88130526,198.62,198.43,22.05300526]
[1738954219851,0.03346512,198.53,198.43,214.05300526]
[1738954220048,0.03346512,198.53,198.48,5.0364]
[1738954220652,5.06886512,198.53,198.46,5.0369]
[1738954221449,0.03346512,198.53,198.44,5.0372]
[1738954221756,4.7301,198.57,198.44,5.0372]
[1738954222052,5.0362,198.49,198.43,5.0376]
[1738954222352,0.03401056,198.5,198.35,23.22480526]
[1738954222752,21.88130526,198.54,198.35,23.22480526]
[1738954222951,0.03504633,198.44,198.35,23.22480526]
[1738954223347,0.03504633,198.44,198.4,5.0384]
[1738954224049,0.03504633,198.44,198.35,1.3435]
[1738954224250,0.03504633,198.44,198.33,192.0]
[1738954224751,5.0382,198.42,198.36,5.0393]
[1738954225752,0.03504633,198.44,198.33,192.0]
[1738954226057,5.0384,198.41,198.35,5.0397]
[1738954226357,5.0388,198.39,198.33,5.0401]
[1738954226552,5.0388,198.39,198.3,88.33946128]
[1738954226953,5.0388,198.39,198.33,5.04]
[1738954227354,0.03198088,198.4,198.3,88.33946128]
[1738954227554,0.03198088,198.4,198.38,5.0389]
[1738954227750,0.03198088,198.4,198.33,21.88130526]
[1738954228954,0.03198088,198.4,198.36,5.0394]
[1738954229557,0.03198088,198.4,198.33,5.0401]
[1738954229954,5.0395,198.37,198.29,5.0412]
[1738954230155,21.88130526,198.41,198.29,5.0412]
[1738954230356,0.03204108,198.35,198.29,5.0412]
[1738954230557,0.03204108,198.35,198.27,5.0416]
[1738954230758,4.5764,198.36,198.21,1.3495]
[1738954231057,0.03792269,198.3,198.26,5.0418]
[1738954231761,0.03792269,198.3,198.21,1.3495]
[1738954232060,0.03792269,198.3,198.24,21.88130526]
[1738954232260,0.03792269,198.3,198.29,5.0413]
[1738954232762,0.03792269,198.3,198.25,5.0421]
[1738954232952,0.03792269,198.3,198.21,1.3495]
[1738954233554,0.03792269,198.3,198.27,5.0416]
[1738954233761,0.03792269,198.3,198.21,1.3495]
[1738954234462,0.03792269,198.3,198.27,5.0418]
[1738954234867,0.03792269,198.3,198.21,0.4049]
[1738954235062,0.03792269,198.3,198.2,213.88130526]
[1738954235559,5.0413,198.29,198.25,5.0423]
[1738954235860,0.03792269,198.3,198.25,5.0423]
[1738954236065,0.03792269,198.3,198.23,5.0428]
[1738954236261,0.03792269,198.3,198.2,192.0]
[1738954236664,5.0416,198.28,198.23,5.0428]
[1738954237358,5.0416,198.28,198.2,192.0]
[1738954237359,0.03792269,198.3,198.2,192.0]
[1738954237563,5.0419,198.27,198.22,5.043]
[1738954237765,5.07684801,198.27,198.2,192.0]
[1738954237960,0.03494801,198.27,198.14,21.88130526]
[1738954238164,5.0431,198.23,198.13,0.4069]
[1738954238357,0.03836239,198.22,198.13,0.4069]
[1738954238560,0.03836239,198.22,198.14,21.88130526]
[1738954239166,0.03836239,198.22,198.21,5.0433]
[1738954239963,5.0406,198.32,198.2,21.88130526]
[1738954240167,4.02,198.34,198.2,21.88130526]
[1738954241267,0.03443429,198.29,198.25,0.03593149]
[1738954242463,5.042,198.27,198.25,0.03593149]
[1738954242668,0.03443429,198.29,198.25,0.03593149]
[1738954243266,5.0421,198.26,198.25,0.03593149]
[1738954243466,0.03443429,198.29,198.25,0.03593149]
[1738954243671,5.0418,198.28,198.25,0.03593149]
[1738954244168,0.03443429,198.29,198.25,0.03593149]
[1738954244368,0.03443429,198.29,198.14,21.88130526]
[1738954244663,21.88130526,198.28,198.13,192.4069]
[1738954245058,5.0426,198.24,198.13,192.4069]
[1738954245462,25.88130526,198.32,198.15,21.88130526]
[1738954245659,5.0418,198.27,198.22,5.0429]
[1738954245862,0.03864063,198.25,198.22,5.0429]
[1738954246969,0.03864063,198.25,198.13,192.4069]
[1738954247265,3.0002,198.26,198.13,192.4069]
[1738954247567,5.07729965,198.21,198.17,5.0443]
[1738954248574,0.03389965,198.21,198.1,0.1778]
[1738954249062,5.0437,198.2,198.16,5.0445]
[1738954249260,0.03389965,198.21,198.1,0.1778]
[1738954249470,3.0002,198.26,198.11,21.88130526]
[1738954249668,3.0002,198.26,198.14,21.88130526]
[1738954249669,7.563e-05,198.17,198.14,21.88130526]
[1738954249872,3.0002,198.26,198.14,21.88130526]
[1738954250572,5.0417,198.28,198.23,5.0426]
[1738954250964,0.03419974,198.27,198.24,0.03332099]
[1738954251768,0.03419974,198.27,198.26,5.0421]
[1738954253271,0.03419974,198.27,198.24,0.03332099]
[1738954253776,0.03419974,198.27,198.25,5.0423]
[1738954254668,0.03419974,198.27,198.24,0.03332099]
[1738954255273,0.03419974,198.27,198.26,5.0421]
[1738954255968,4.6944,198.39,198.24,0.03332099]
[1738954256166,4.6944,198.39,198.27,21.88130526]
[1738954256367,21.88130526,198.44,198.35,5.0398]
[1738954256575,21.88130526,198.44,198.27,21.88130526]
[1738954256968,5.0384,198.41,198.32,5.0405]
[1738954257173,0.03347569,198.37,198.34,0.03175418]
[1738954257372,30.61610526,198.48,198.34,0.03175418]
[1738954257677,2.465e-05,198.37,198.35,21.88130526]
[1738954257874,4.7548,198.48,198.35,21.88130526]
[1738954258576,4.7548,198.48,198.38,5.0388]
[1738954258777,0.03237509,198.43,198.4,0.03676353]
[1738954259373,0.03237509,198.43,198.42,5.038]
[1738954259675,0.03237509,198.43,198.4,0.03676353]
[1738954262673,5.038,198.42,198.4,0.03676353]
[1738954263678,0.03237509,198.43,198.4,0.03676353]
[1738954264178,0.03237509,198.43,198.28,21.88130526]
[1738954264482,21.88130526,198.42,198.25,214.45970526]
[1738954264675,5.0397,198.36,198.31,5.0406]
[1738954264871,21.88130526,198.38,198.25,192.0]
[1738954265078,1.5429,198.37,198.21,21.88130526]
[1738954265285,0.03555982,198.33,198.3,0.03316332]
[1738954267783,0.03555982,198.33,198.31,5.0408]
[1738954268284,0.03555982,198.33,198.32,5.0405]
[1738954269486,0.03555982,198.33,198.3,0.03316332]
[1738954273487,0.03555982,198.33,198.31,5.0407]
[1738954273789,0.03555982,198.33,198.3,0.03316332]
[1738954274187,0.03555982,198.33,198.32,5.0405]
[1738954274684,0.03555982,198.33,198.3,5.07406332]
[1738954274885,0.03555982,198.33,198.3,0.03316332]
[1738954277391,5.0408,198.31,198.3,0.03316332]
[1738954277688,21.91686508,198.33,198.21,192.0]
[1738954277886,5.0421,198.26,198.21,5.0432]
[1738954278189,1.5334,198.32,198.15,192.9441]
[1738954278190,21.88130526,198.3,198.15,192.9441]
[1738954278390,1.5588,198.29,198.15,192.9441]
[1738954278585,1.5588,198.29,198.15,192.0]
[1738954278988,0.03198862,198.24,198.2,0.03175161]
[1738954280992,5.0433,198.21,198.2,0.03175161]
[1738954281196,21.91329388,198.24,198.1,0.9435]
[1738954281493,21.88130526,198.24,198.1,0.9435]
[1738954281895,21.88130526,198.24,198.08,21.88130526]
[1738954282094,5.044,198.19,198.14,5.0449]
[1738954282394,0.03300724,198.18,198.14,5.0449]
[1738954282697,5.07710724,198.18,198.14,5.0449]
[1738954282993,5.07710724,198.18,198.13,5.0453]
[1738954283392,0.03300724,198.18,198.08,21.88130526]
[1738954283889,0.03300724,198.18,198.11,21.88130526]
[1738954284203,0.03300724,198.18,198.17,5.0444]
[1738954286394,0.03300724,198.18,198.1,21.88130526]
[1738954286586,0.03300724,198.18,198.07,214.49580526]
[1738954287597,0.03300724,198.18,198.07,192.0]
[1738954288095,0.03300724,198.18,198.04,21.88130526]
[1738954288295,5.0454,198.13,198.08,5.0466]
[1738954288488,5.0454,198.13,198.04,21.88130526]
[1738954288685,5.08358444,198.14,198.08,5.0465]
[1738954288895,0.03848444,198.14,198.04,21.88130526]
[1738954289197,0.03848444,198.14,198.07,5.0469]
[1738954289396,0.03848444,198.14,198.07,21.88130526]
[1738954289698,0.03848444,198.14,198.07,213.88130526]
[1738954290203,3.1964,198.27,198.11,21.88130526]
[1738954290493,3.1964,198.27,198.12,1.4164]
[1738954291195,56.5698629,198.35,198.19,21.88130526]
[1738954291392,9.374e-05,198.21,198.19,21.88130526]
[1738954291592,175.10250783,198.34,198.19,21.88130526]
[1738954291996,3.1837,198.34,198.19,21.88130526]
[1738954292295,5.0408,198.31,198.19,21.88130526]
[1738954292496,3.1837,198.34,198.19,21.88130526]
[1738954292696,0.03798025,198.27,198.26,5.0418]
[1738954292994,3.1837,198.34,198.19,21.88130526]
[1738954293196,0.03177859,198.28,198.25,0.0324449]
[1738954294398,0.03177859,198.28,198.27,5.0418]
[1738954298701,21.88130526,198.39,198.27,5.0418]
[1738954298702,5.0383,198.41,198.35,5.0396]
[1738954298901,1.5511,198.44,198.27,21.88130526]
[1738954298902,4.6071,198.44,198.27,21.88130526]
[1738954299401,5.0387,198.4,198.27,21.88130526]
[1738954299901,0.03488036,198.35,198.32,0.03795338]
[1738954300101,0.03488036,198.35,198.34,5.0398]
[1738954302296,0.03488036,198.35,198.32,5.07845338]
[1738954302501,0.03488036,198.35,198.32,0.03795338]
[1738954303201,0.03488036,198.35,198.15,10.0897]
[1738954303202,0.03488036,198.35,198.2,21.88130526]
[1738954303501,3.0136,198.35,198.17,192.0]
[1738954303697,5.041,198.31,198.25,5.0421]
[1738954303898,5.041,198.31,198.19,21.88130526]
[1738954303899,6.8936,198.35,198.19,21.88130526]
[1738954304402,0.03843085,198.29,198.27,5.0416]
[1738954304602,5.0406,198.32,198.27,5.0416]
[1738954304798,0.03734645,198.3,198.27,5.0416]
[1738954305503,0.03734645,198.3,198.26,0.03403528]
[1738954305703,0.03734645,198.3,198.27,5.0416]
[1738954305905,0.03734645,198.3,198.26,0.03403528]
[1738954306304,0.03734645,198.3,198.27,5.0418]
[1738954306804,137.53504626,198.47,198.26,21.91534054]
[1738954307101,1.6259,198.43,198.31,21.88130526]
[1738954308004,0.03718682,198.39,198.35,0.03595475]
[1738954309507,0.03718682,198.39,198.38,5.039]
[1738954312208,14.49808896,198.59,198.35,213.91726001]
[1738954312404,3.1095,198.56,198.43,21.88130526]
[1738954313305,0.0342704,198.51,198.48,0.03708481]
[1738954313705,0.0342704,198.51,198.48,5.07348481]
[1738954314607,0.0342704,198.51,198.49,5.0362]
[1738954316410,0.0342704,198.51,198.5,5.036]
[1738954317813,0.0342704,198.51,198.48,5.07348481]
[1738954318214,0.0342704,198.51,198.48,0.03708481]
[1738954319710,5.0701704,198.51,198.48,0.03708481]
[1738954320113,7.04e-05,198.51,198.48,0.03708481]
[1738954320409,7.04e-05,198.51,198.5,26.91730526]
[1738954320912,7.04e-05,198.51,198.5,5.036]
[1738954322017,4.7168,198.65,198.55,5.0346]
[1738954322414,4.7168,198.65,198.5,21.88130526]
[1738954322614,4.7168,198.65,198.46,21.88130526]
[1738954322810,21.88130526,198.62,198.51,5.0357]
[1738954323015,5.0347,198.55,198.51,5.0357]
[1738954323319,5.0347,198.55,198.51,5.06839621]
[1738954323720,21.91941616,198.58,198.51,0.03269621]
[1738954324019,21.91941616,198.58,198.41,192.9782]
[1738954324020,1.5792,198.54,198.41,192.9782]
[1738954324213,1.5413,198.53,198.41,192.9782]
[1738954324921,5.0363,198.49,198.41,192.0]
[1738954325117,0.03511023,198.49,198.45,0.0321272]
[1738954325313,0.03511023,198.49,198.37,21.88130526]
[1738954325621,5.0375,198.44,198.34,66.45029348]
[1738954325813,5.0375,198.44,198.41,0.03678879]
[1738954326020,5.0375,198.44,198.37,5.039]
[1738954326321,5.07279721,198.44,198.41,0.034209]
[1738954327124,0.03529721,198.44,198.41,0.034209]
[1738954327326,0.03529721,198.44,198.34,66.45029348]
[1738954327522,5.0386,198.4,198.34,66.45029348]
[1738954328321,5.0386,198.4,198.31,21.88130526]
[1738954328525,5.0386,198.4,198.35,0.03458965]
[1738954328526,0.0372655,198.39,198.35,0.03458965]
[1738954328721,5.0761655,198.39,198.35,0.03458965]
[1738954328926,0.0372655,198.39,198.35,0.03458965]
[1738954329322,5.0391,198.38,198.35,0.03458965]
[1738954329522,0.0372655,198.39,198.35,0.03458965]
[1738954329722,0.0372655,198.39,198.27,21.88130526]
[1738954329925,1.5634,198.42,198.27,21.88130526]
[1738954330823,5.0393,198.37,198.33,0.03341746]
[1738954331031,0.03357575,198.36,198.33,0.03341746]
[1738954332030,5.07337575,198.36,198.33,0.03341746]
[1738954332326,0.03357575,198.36,198.33,0.03341746]
[1738954333028,0.03357575,198.36,198.2,1.524]
[1738954333029,5.0403,198.33,198.24,21.88130526]
[1738954333322,5.0403,198.33,198.21,21.88130526]
[1738954333729,5.0403,198.33,198.28,5.0415]
[1738954333926,5.04,198.34,198.28,5.0415]
[1738954334126,0.03705912,198.32,198.29,0.03287114]
[1738954334622,0.03705912,198.32,198.29,5.07417114]
[1738954335224,5.07765912,198.32,198.29,0.03287114]
[1738954337429,5.0408,198.31,198.29,0.03287114]
[1738954338733,5.0408,198.31,198.26,5.042]
[1738954338933,6.6689,198.31,198.21,21.88130526]
[1738954339241,1.6281,198.31,198.21,21.88130526]
[1738954339637,5.0412,198.3,198.21,21.88130526]
[1738954339935,5.0412,198.3,198.17,192.0]
[1738954339936,0.03620302,198.27,198.24,5.06243831]
[1738954340642,0.03620302,198.27,198.25,5.0423]
[1738954341041,0.03620302,198.27,198.24,0.02003831]
[1738954342238,0.03620302,198.27,198.25,5.0422]
[1738954342542,0.03620302,198.27,198.24,0.02003831]
[1738954343643,0.03620302,198.27,198.26,5.0421]
[1738954347039,5.0398,198.35,198.24,21.90134357]
[1738954347240,1.6179,198.36,198.28,21.88130526]
[1738954347644,1.5408,198.4,198.28,21.88130526]
[1738954348332,0.03180032,198.36,198.33,5.0402]
[1738954349945,0.03180032,198.36,198.32,0.03387134]
[1738954350144,5.0399,198.35,198.32,0.03387134]
[1738954350446,0.03180032,198.36,198.32,0.03387134]
[1738954350746,5.07130032,198.36,198.32,0.03387134]
[1738954351045,0.03180032,198.36,198.32,0.03387134]
[1738954351945,0.03180032,198.36,198.33,5.0402]
[1738954352546,5.07130032,198.36,198.33,5.0402]
[1738954353848,5.07130032,198.36,198.32,0.03387134]
[1738954353849,5.0398,198.35,198.32,0.03387134]
[1738954354047,0.03180032,198.36,198.32,0.03387134]
[1738954354345,0.03180032,198.36,198.33,5.0402]
[1738954354652,0.03180032,198.36,198.32,0.03387134]
[1738954354849,0.03180032,198.36,198.35,5.0398]
[1738954363659,0.03180032,198.36,198.34,5.04]
[1738954364755,0.03180032,198.36,198.32,0.03387134]
[1738954365059,0.03180032,198.36,198.35,5.0398]
[1738954370268,0.03180032,198.36,198.32,0.03387134]
[1738954370762,0.03180032,198.36,198.33,5.0402]
[1738954370961,0.03180032,198.36,198.32,0.03387134]
[1738954371463,0.03180032,198.36,198.32,5.07437134]
[1738954371865,5.07160032,198.36,198.32,5.07437134]
[1738954372064,5.07160032,198.36,198.32,0.03387134]
[1738954372365,5.0398,198.35,198.32,0.03387134]
[1738954373369,5.0403,198.33,198.32,0.03387134]
[1738954378473,5.0407,198.32,198.28,5.0415]
[1738954378669,5.0407,198.32,198.22,15.27713714]
[1738954379571,0.03448501,198.29,198.27,5.0418]
[1738954379872,0.03448501,198.29,198.25,0.02236999]
[1738954380172,0.03448501,198.29,198.25,13.73810713]
[1738954380368,0.03448501,198.29,198.25,0.02236999]
[1738954381171,0.03448501,198.29,198.28,5.0416]
[1738954381367,0.03448501,198.29,198.25,0.02236999]
[1738954382066,0.03448501,198.29,198.28,5.0416]
[1738954382465,0.03448501,198.29,198.25,5.06466999]
[1738954383264,0.03448501,198.29,198.25,0.02236999]
[1738954383469,1.52708501,198.29,198.25,0.02236999]
[1738954383663,5.0418,198.28,198.25,0.02236999]
[1738954384274,5.0416,198.28,198.25,0.02236999]
[1738954384473,1.52708501,198.29,198.25,0.02236999]
[1738954385172,5.0418,198.28,198.25,0.02236999]
[1738954387270,1.52708501,198.29,198.25,0.02236999]
[1738954387473,5.0421,198.26,198.25,0.02236999]
[1738954387770,13.71573714,198.28,198.13,13.71573714]
[1738954387976,13.71573714,198.25,198.13,13.71573714]
[1738954388673,5.0439,198.19,198.15,5.0448]
[1738954388976,5.0437,198.2,198.16,5.0446]
[1738954389379,5.08225595,198.2,198.16,5.0446]
[1738954389578,5.0439,198.19,198.15,5.0448]
[1738954390177,5.0441,198.18,198.14,5.0451]
[1738954390375,0.03855595,198.2,198.1,13.71573714]
[1738954390570,3.76,198.24,198.1,13.71573714]
[1738954390775,0.03439926,198.17,198.1,13.71573714]
[1738954391881,0.03439926,198.17,198.16,5.0446]
[1738954393882,0.03439926,198.17,198.1,13.71573714]
[1738954394390,0.03439926,198.17,198.07,13.71573714]
[1738954394688,0.03439926,198.17,198.13,5.0452]
[1738954394987,0.03439926,198.17,198.12,5.0454]
[1738954395288,0.03439926,198.17,198.07,13.71573714]
[1738954395588,0.03439926,198.17,198.06,1.5553]
[1738954395589,0.03439926,198.17,198.1,13.71573714]
[1738954396089,0.03439926,198.17,198.14,5.045]
[1738954396290,5.0449,198.15,198.07,13.71573714]
[1738954396588,13.71573714,198.17,198.04,13.71573714]
[1738954396786,5.08090759,198.13,198.04,13.71573714]
[1738954397184,0.03530759,198.13,198.07,5.0469]
[1738954397485,5.0456,198.12,198.01,13.71573714]
[1738954397987,0.03826443,198.08,198.01,13.71573714]
[1738954398581,13.71573714,198.06,197.96,192.0]
[1738954399289,0.03533476,198.03,197.96,192.0]
[1738954400184,13.7510719,198.03,197.93,5.0503]
[1738954400378,13.71573714,198.03,197.93,5.0503]
[1738954400583,5.08395586,198.0,197.93,5.0503]
[1738954400990,0.03525586,198.0,197.93,5.0503]
[1738954401182,0.03525586,198.0,197.84,0.4776]
[1738954401183,13.750993,198.0,197.86,13.71573714]
[1738954401384,1.6317,198.0,197.89,13.71573714]
[1738954401591,1.6317,198.0,197.92,13.71573714]
[1738954401786,0.03377024,197.95,197.92,13.71573714]
[1738954402479,0.03377024,197.95,197.94,5.0502]
[1738954404585,13.71573714,198.06,197.92,13.71573714]
[1738954404984,13.71573714,198.06,197.99,5.0488]
[1738954405188,13.71573714,198.06,197.95,13.71573714]
[1738954405388,8.172,198.07,197.95,13.71573714]
[1738954405588,3.125,198.07,198.02,5.0482]
[1738954405792,0.03850433,198.03,198.02,5.0482]
[1738954406889,0.03850433,198.03,197.99,0.0344126]
[1738954407085,0.03850433,198.03,197.92,13.71573714]
[1738954407391,0.03850433,198.03,197.95,13.71573714]
[1738954407894,0.03850433,198.03,197.98,13.71573714]
[1738954408394,0.03850433,198.03,198.0,5.0485]
[1738954409495,0.03850433,198.03,197.93,1.5584]
[1738954410092,13.71573714,198.02,197.92,192.0]
[1738954410595,0.03441861,197.99,197.89,13.71573714]
[1738954412393,0.03441861,197.99,197.92,13.71573714]
[1738954412598,5.0487,198.01,197.92,13.71573714]
[1738954412799,0.03396852,197.97,197.95,5.0498]
[1738954413803,0.03396852,197.97,197.96,5.0497]
[1738954415804,1.6141,198.07,197.98,13.71573714]
[1738954416201,1.6141,198.07,198.0,5.0485]
[1738954416402,5.0467,198.08,197.98,13.71573714]
[1738954416798,5.0467,198.08,198.01,0.03396852]
[1738954417105,0.03736794,198.05,198.01,0.03396852]
[1738954417298,0.03736794,198.05,198.01,13.74970566]
[1738954418003,0.03736794,198.05,198.04,5.0477]
[1738954421506,18.76093714,198.14,198.01,13.74970566]
[1738954421706,18.76093714,198.14,198.09,5.0463]
[1738954421707,5.0452,198.14,198.09,5.0463]
[1738954422804,0.03640247,198.13,198.1,0.03640377]
[1738954423105,5.08200247,198.13,198.1,0.03640377]
[1738954426110,0.03640247,198.13,198.11,5.0458]
[1738954427213,0.03640247,198.13,198.1,0.03640377]
[1738954427413,0.03640247,198.13,198.12,5.0456]
[1738954431814,0.03640247,198.13,198.1,5.08250377]
[1738954432815,0.03640247,198.13,198.1,0.03640377]
[1738954433217,5.0458,198.12,198.1,0.03640377]
[1738954434820,13.71573714,198.11,198.0,192.0]
[1738954435020,13.71573714,198.07,197.99,5.0489]
[1738954435822,0.03836587,198.05,198.01,0.03493269]
[1738954436118,1.5664,198.09,198.01,13.71573714]
[1738954436321,0.03543757,198.05,198.01,13.75066983]
[1738954437117,0.03543757,198.05,198.02,5.0481]
[1738954439325,0.03543757,198.05,198.01,0.03493269]
[1738954440126,5.0482,198.02,198.01,0.03493269]
[1738954441828,0.03543757,198.05,198.01,0.03493269]
[1738954443427,5.0479,198.04,198.01,0.03493269]
[1738954444130,0.03543757,198.05,198.01,0.03493269]
[1738954444334,0.03543757,198.05,198.01,13.75066983]
[1738954444731,0.03543757,198.05,198.02,5.0481]
[1738954445234,0.03543757,198.05,198.01,0.03493269]
[1738954445438,0.03543757,198.05,198.02,5.0481]
[1738954445731,0.03543757,198.05,198.01,0.03493269]
[1738954445936,5.08283757,198.05,198.01,5.08333269]
[1738954446629,5.08283757,198.05,198.01,0.03493269]
[1738954446630,0.03543757,198.05,198.01,0.03493269]
[1738954446831,0.03543757,198.05,198.02,5.0481]
[1738954448038,0.03543757,198.05,198.01,0.03493269]
[1738954449738,0.03543757,198.05,198.02,5.048]
[1738954453540,0.03543757,198.05,198.04,5.0477]
[1738954454240,0.03543757,198.05,198.01,0.03493269]
[1738954454639,5.0482,198.02,198.01,0.03493269]
[1738954455935,5.0489,198.0,197.94,5.05]
[1738954456140,13.71573714,198.03,197.94,5.05]
[1738954456645,5.0489,198.0,197.94,5.05]
[1738954457143,5.08247397,197.99,197.94,5.05]
[1738954457744,0.03347397,197.99,197.89,13.71573714]
[1738954458342,0.03347397,197.99,197.92,5.0507]
[1738954458542,0.03347397,197.99,197.89,13.71573714]
[1738954459445,0.03347397,197.99,197.96,5.0496]
[1738954463774,0.03347397,197.99,197.97,5.0492]
[1738954463972,0.03347397,197.99,197.92,13.71573714]
[1738954465182,0.03347397,197.99,197.97,5.0494]
[1738954468585,0.03347397,197.99,197.92,13.71573714]
[1738954468586,0.03347397,197.99,197.94,5.0502]
[1738954468882,0.03347397,197.99,197.89,192.0]
[1738954469484,1.61257397,197.99,197.92,5.0506]
[1738954469685,0.03347397,197.99,197.89,205.71573714]
[1738954471788,0.03347397,197.99,197.92,13.71573714]
[1738954472089,0.03347397,197.99,197.98,5.0492]
[1738954473183,0.03347397,197.99,197.92,13.71573714]
[1738954473395,0.03347397,197.99,197.89,205.71573714]
[1738954473889,5.0495,197.97,197.92,5.0506]
[1738954474085,5.0495,197.97,197.89,205.71573714]
[1738954474584,0.03472533,197.95,197.93,5.0504]
[1738954474786,0.03472533,197.95,197.89,205.71573714]
[1738954475785,0.03472533,197.95,197.93,5.0503]
[1738954476091,0.03472533,197.95,197.92,13.71573714]
[1738954476287,87.45966534,198.05,197.92,13.71573714]
[1738954476544,87.45966534,198.05,197.95,13.71573714]
[1738954476990,84.20826534,198.05,197.98,13.71573714]
[1738954477586,0.03608542,198.03,198.02,5.0482]
[1738954479093,0.03608542,198.03,198.0,5.08322533]
[1738954479289,0.03608542,198.03,198.0,0.03472533]
[1738954479781,5.08398542,198.03,198.0,0.03472533]
[1738954480182,5.0484,198.01,198.0,0.03472533]
[1738954480477,5.0484,198.01,197.91,192.1252]
[1738954480478,0.03608542,198.03,197.91,192.0]
[1738954480666,5.0488,198.0,197.95,5.0499]
[1738954481566,0.03479025,197.99,197.95,5.0499]
[1738954482155,0.03479025,197.99,197.93,13.71573714]
[1738954482357,13.71573714,197.98,197.84,13.71573714]
[1738954482561,5.05,197.95,197.89,5.0513]
[1738954482763,0.03751903,197.93,197.87,13.71573714]
[1738954483656,0.03751903,197.93,197.9,5.0511]
[1738954484155,0.03751903,197.93,197.87,13.71573714]
[1738954484355,0.03751903,197.93,197.91,5.0507]
[1738954484965,0.03751903,197.93,197.92,5.0507]
[1738954488977,0.03751903,197.93,197.91,5.051]
[1738954490064,0.03751903,197.93,197.92,5.0507]
[1738954490259,0.03751903,197.93,197.84,14.90303714]
[1738954490464,13.71573714,197.92,197.83,192.0]
[1738954490664,15.25443714,197.92,197.83,192.0]
[1738954490865,5.0522,197.87,197.76,1.581]
[1738954491064,18.34913714,197.92,197.78,13.71573714]
[1738954491261,18.34913714,197.92,197.83,5.0529]
[1738954491466,0.03681673,197.87,197.83,5.0529]
[1738954491770,0.03681673,197.87,197.81,13.71573714]
[1738954492170,0.03681673,197.87,197.82,5.0531]
[1738954492860,0.03681673,197.87,197.76,23.64975619]
[1738954493071,0.03681673,197.87,197.76,1.581]
[1738954493471,0.03681673,197.87,197.75,193.6193]
[1738954493666,25.82875619,197.9,197.75,192.0]
[1738954493868,0.03293924,197.83,197.75,197.0549]
[1738954494069,0.03293924,197.83,197.68,4.7275]
[1738954494271,5.0533,197.82,197.75,5.055]
[1738954494573,0.03538608,197.77,197.68,4.7275]
[1738954495077,0.03538608,197.77,197.7,22.06875619]
[1738954496369,0.03538608,197.77,197.76,5.0548]
[1738954497276,4.579,197.89,197.75,22.06875619]
[1738954497575,9.6307,197.89,197.82,5.0532]
[1738954497768,4.579,197.89,197.78,22.06875619]
[1738954498475,0.03537533,197.85,197.83,5.0528]
[1738954498874,0.03537533,197.85,197.82,0.03376744]
[1738954499072,0.03537533,197.85,197.84,5.0528]
[1738954500577,84.21397869,197.97,197.9,5.0511]
[1738954500776,5.05,197.95,197.82,22.06875619]
[1738954501677,0.03833878,197.9,197.87,0.0357454]
[1738954501878,0.03833878,197.9,197.88,5.0515]
[1738954502976,0.03833878,197.9,197.89,5.0515]
[1738954503880,0.03833878,197.9,197.87,0.0357454]
[1738954504484,0.03833878,197.9,197.87,5.0875454]
[1738954504780,0.03833878,197.9,197.87,0.0357454]
[1738954507080,0.03833878,197.9,197.89,5.0515]
[1738954508784,3.1219,197.99,197.98,5.0492]
[1738954508978,3.1219,197.99,197.91,22.06875619]
[1738954509179,3.1219,197.99,197.88,23.63925619]
[1738954509382,3.1219,197.99,197.93,5.0505]
[1738954509681,5.0495,197.97,197.88,1.5705]
[1738954509880,0.03283797,197.94,197.91,0.03476026]
[1738954510384,0.03283797,197.94,197.92,5.0505]
[1738954511181,0.03283797,197.94,197.91,5.08566026]
[1738954511686,0.03283797,197.94,197.91,0.03476026]
[1738954511983,0.03283797,197.94,197.92,5.0507]
[1738954512185,0.03283797,197.94,197.91,0.03476026]
[1738954512384,0.03283797,197.94,197.93,5.0505]
[1738954516581,3.797e-05,197.94,197.93,5.0505]
[1738954518484,3.797e-05,197.94,197.91,0.03476026]
[1738954518789,3.797e-05,197.94,197.92,5.0507]
[1738954519586,3.797e-05,197.94,197.91,0.03476026]
[1738954519787,3.797e-05,197.94,197.93,5.0505]
[1738954522392,3.797e-05,197.94,197.77,10.1091]
[1738954522589,13.77625068,197.91,197.77,15.32075068]
[1738954522793,13.77625068,197.88,197.77,13.77625068]
[1738954523097,18.82815068,197.88,197.76,192.0]